[Event "ESP-chT 1st Division 2020"]
[Site "Padron"]
[Date "2020.10.09"]
[Round "7.1"]
[White "Suarez Gomez, Julio"]
[Black "Adla, Diego"]
[Result "1-0"]
[ECO "E20"]
[WhiteElo "2426"]
[BlackElo "2438"]
[Annotator "ChessBase"]
[PlyCount "173"]
[EventDate "2020.10.01"]
[EventType "team-tourn"]
[EventCountry "ESP"]
[SourceTitle "playchess.com"]
[Source "ChessBase"]
[SourceQuality "1"]
[TimeControl "5400+30"]

1. d4 {[%emt 0:00:52]} Nf6 {[%emt 0:00:00]} 2. c4 {[%emt 0:00:08]} e6 {[%emt 0:00:00]} 3. Nc3 {[%emt 0:00:04]} Bb4 {[%emt 0:00:00]} 4. f3 {[%emt 0:00:51]} O-O {[%emt 0:00:00]} 5. a3 {[%emt 0:00:09]} Bxc3+ {[%emt 0:01:20]} 6. bxc3 {[%emt 0:00:05]} Ne8 {[%emt 0:00:25]} 7. e4 {[%emt 0:00:12]} b6 {[%emt 0:00:09]} 8. Bd3 {[%emt 0:00:10]} Ba6 {[%emt 0:00:21]} 9. Nh3 {[%emt 0:00:26]} Nc6 {[%emt 0:04:42]} 10. Qe2 {[%emt 0:00:08]} Qh4+ {[%emt 0:08:47]} 11. Nf2 {[%emt 0:01:45]} Na5 {[%emt 0:00:15]} 12. e5 {[%emt 0:06:32]} Nb3 {[%emt 0:10:39]} 13. Rb1 {[%emt 0:02:39]} Nxc1 {[%emt 0:00:49]} 14. Rxc1 {[%emt 0:00:12]} Rd8 {[%emt 0:06:34]} 15. O-O {[%emt 0:05:22]} d6 {[%emt 0:00:12]} 16. Rcd1 {[%emt 0:15:13]} Kh8 {[%emt 0:17:13]} 17. g3 {[%emt 0:13:33]} Qh5 {[%emt 0:00:37]} 18. Qe3 {[%emt 0:00:37]} f6 {[%emt 0:26:14]} 19. f4 {[%emt 0:05:29]} Qf7 {[%emt 0:00:18]} 20. Qe4 {[%emt 0:17:07]} g6 {[%emt 0:00:50]} 21. c5 {[%emt 0:01:38]} Bxd3 {[%emt 0:01:56]} 22. Nxd3 {[%emt 0:01:36]} Ng7 {[%emt 0:01:37]} 23. cxd6 {[%emt 0:06:55]} cxd6 {[%emt 0:00:06]} 24. exf6 {[%emt 0:02:16]} Qxf6 {[%emt 0:00:15]} 25. Nf2 {[%emt 0:00:54]} Rc8 {[%emt 0:04:36]} 26. Qf3 {[%emt 0:00:11]} Qf5 {[%emt 0:04:13]} 27. Ne4 {[%emt 0:02:37]} Qd5 {[%emt 0:00:08]} 28. Qd3 {[%emt 0:00:49]} Rc7 {[%emt 0:01:34]} 29. Rf3 {[%emt 0:04:46]} Rfc8 {[%emt 0:00:40]} 30. g4 {[%emt 0:00:10]} Rf8 {[%emt 0:02:44]} 31. Rdf1 {[%emt 0:00:31]} Kg8 {[%emt 0:01:18]} 32. Ng5 {[%emt 0:03:42]} Qc4 {[%emt 0:03:23]} 33. Qe3 {[%emt 0:00:58]} h6 {[%emt 0:00:52]} 34. Ne4 {[%emt 0:00:32]} Qd5 {[%emt 0:00:55]} 35. Qd3 {[%emt 0:00:30]} Rcf7 {[%emt 0:01:00]} 36. Ng3 {[%emt 0:03:46]} Rf6 {[%emt 0:01:37]} 37. c4 {[%emt 0:00:05]} Qc6 {[%emt 0:00:05]} 38. Ne4 {[%emt 0:00:49]} R6f7 {[%emt 0:00:09]} 39. d5 {[%emt 0:01:24]} exd5 {[%emt 0:00:08]} 40. cxd5 {[%emt 0:00:12]} Qd7 {[%emt 0:00:05]} 41. h3 {[%emt 0:00:25]} Ne8 {[%emt 0:01:40]} 42. Ng3 {[%emt 0:00:36]} Rf6 {[%emt 0:01:01]} 43. f5 {[%emt 0:00:23]} gxf5 {[%emt 0:01:10]} 44. Nxf5 {[%emt 0:00:05]} Qh7 {[%emt 0:00:02]} 45. Qe3 {[%emt 0:02:21]} Kh8 {[%emt 0:00:21]} 46. Qd4 {[%emt 0:00:19]} Kg8 {[%emt 0:00:53]} 47. Re1 {[%emt 0:00:34]} h5 {[%emt 0:00:57]} 48. Rg3 {[%emt 0:01:48]} h4 {[%emt 0:00:38]} 49. Rf3 {[%emt 0:00:40]} Qd7 {[%emt 0:00:29]} 50. Re7 {[%emt 0:01:01]} Rxf5 {[%emt 0:00:26]} 51. Rxd7 {[%emt 0:00:05]} Rxf3 {[%emt 0:00:03]} 52. Re7 {[%emt 0:00:50]} Rxh3 {[%emt 0:00:31]} 53. Qd2 {[%emt 0:00:45]} Rg3+ {[%emt 0:00:38]} 54. Kh2 {[%emt 0:00:03]} Rxg4 {[%emt 0:00:07]} 55. Qe2 {[%emt 0:00:13]} Nf6 {[%emt 0:00:19]} 56. Qe6+ {[%emt 0:00:22]} Kh8 {[%emt 0:00:07]} 57. Rf7 {[%emt 0:00:39]} Rxf7 {[%emt 0:00:11]} 58. Qxf7 {[%emt 0:00:03]} Rf4 {[%emt 0:00:13]} 59. Qf8+ {[%emt 0:00:45]} Kh7 {[%emt 0:00:06]} 60. Qxd6 {[%emt 0:00:07]} Rf2+ {[%emt 0:01:52]} 61. Kg1 {[%emt 0:00:23]} Rf5 {[%emt 0:00:06]} 62. Qe6 {[%emt 0:01:54]} Rxd5 {[%emt 0:01:12]} 63. Qxf6 {[%emt 0:00:24]} Ra5 {[%emt 0:00:03]} 64. Qxh4+ {[%emt 0:00:26]} Kg6 {[%emt 0:00:35]} 65. Qe7 {[%emt 0:00:10]} Kf5 {[%emt 0:00:07]} 66. Kf2 {[%emt 0:00:13]} Kf4 {[%emt 0:00:28]} 67. a4 {[%emt 0:00:57]} Kf5 {[%emt 0:00:48]} 68. Kf3 {[%emt 0:00:05]} Kg6 {[%emt 0:00:37]} 69. Qe6+ {[%emt 0:00:38]} Kg7 {[%emt 0:00:09]} 70. Qe8 {[%emt 0:00:15]} Kf6 {[%emt 0:00:07]} 71. Kf4 {[%emt 0:00:06]} Kg7 {[%emt 0:00:05]} 72. Ke4 {[%emt 0:00:32]} Kf6 {[%emt 0:00:08]} 73. Kd4 {[%emt 0:00:06]} Kg7 {[%emt 0:00:05]} 74. Kc4 {[%emt 0:00:06]} Kf6 {[%emt 0:00:03]} 75. Kb4 {[%emt 0:00:04]} Kf5 {[%emt 0:00:14]} 76. Qe7 {[%emt 0:00:23]} Kg6 {[%emt 0:00:35]} 77. Qf8 {[%emt 0:00:10]} Kg5 {[%emt 0:00:09]} 78. Qf7 {[%emt 0:00:07]} Kg4 {[%emt 0:01:02]} 79. Qf6 {[%emt 0:00:07]} Kg3 {[%emt 0:00:04]} 80. Qf1 {[%emt 0:00:09]} Kg4 {[%emt 0:00:21]} 81. Qf6 {[%emt 0:02:23]} Kg3 {[%emt 0:00:05]} 82. Qd4 {[%emt 0:01:15]} Kf3 {[%emt 0:00:07]} 83. Kc3 {[%emt 0:00:10]} Kg3 {[%emt 0:00:04]} 84. Qe4 {[%emt 0:00:17]} Rg5 {[%emt 0:01:21]} 85. Kd3 {[%emt 0:00:54]} Rg4 {[%emt 0:00:33]} 86. Qe8 {[%emt 0:00:24]} Rb4 {[%emt 0:00:57]} 87. Qb8+ {[%emt 0:00:15]} 1-0

[Event "ESP-chT 1st Division 2020"]
[Site "Padron"]
[Date "2020.10.09"]
[Round "7.2"]
[White "Glavina, Pablo"]
[Black "Reinaldo Castineira, Roi"]
[Result "0-1"]
[ECO "A05"]
[WhiteElo "2412"]
[BlackElo "2469"]
[Annotator "ChessBase"]
[PlyCount "68"]
[EventDate "2020.10.01"]
[EventType "team-tourn"]
[EventCountry "ESP"]
[SourceTitle "playchess.com"]
[Source "ChessBase"]
[SourceQuality "1"]
[TimeControl "5400+30"]

1. Nf3 {[%emt 0:00:00]} Nf6 {[%emt 0:01:58]} 2. g3 {[%emt 0:00:05]} e6 {[%emt 0:01:35]} 3. Bg2 {[%emt 0:00:18]} d5 {[%emt 0:02:28]} 4. c4 {[%emt 0:00:13]} Nbd7 {[%emt 0:03:47]} 5. O-O {[%emt 0:00:38]} dxc4 {[%emt 0:02:06]} 6. Qa4 {[%emt 0:00:16]} a6 {[%emt 0:02:13]} 7. Qxc4 {[%emt 0:00:05]} b5 {[%emt 0:03:00]} 8. Qc2 {[%emt 0:07:08]} Bb7 {[%emt 0:00:28]} 9. a4 {[%emt 0:02:26]} c5 {[%emt 0:01:40]} 10. d3 {[%emt 0:01:41]} Be7 {[%emt 0:00:39]} 11. Nc3 {[%emt 0:00:44]} b4 {[%emt 0:03:15]} 12. Nd1 {[%emt 0:00:08]} a5 {[%emt 0:06:11]} 13. e4 {[%emt 0:03:02]} c4 {[%emt 0:04:50]} 14. Re1 {[%emt 0:05:23]} cxd3 {[%emt 0:03:04]} 15. Qxd3 {[%emt 0:00:05]} Nc5 {[%emt 0:03:32]} 16. Qxd8+ {[%emt 0:00:05]} Rxd8 {[%emt 0:00:13]} 17. e5 {[%emt 0:00:06]} Nfd7 {[%emt 0:03:50]} 18. Bf4 {[%emt 0:02:53]} Nb3 {[%emt 0:06:53]} 19. Rb1 {[%emt 0:00:18]} Ndc5 {[%emt 0:00:13]} 20. Ng5 {[%emt 0:00:56]} Bxg2 {[%emt 0:12:03]} 21. Kxg2 {[%emt 0:00:14]} Nxa4 {[%emt 0:00:04]} 22. Ne4 {[%emt 0:00:20]} Nac5 {[%emt 0:00:09]} 23. Nxc5 {[%emt 0:01:17]} Bxc5 {[%emt 0:01:16]} 24. Ne3 {[%emt 0:00:45]} O-O {[%emt 0:03:14]} 25. Re2 {[%emt 0:00:25]} h6 {[%emt 0:06:25]} 26. h4 {[%emt 0:00:11]} Rd2 {[%emt 0:00:24]} 27. Rxd2 {[%emt 0:01:22]} Nxd2 {[%emt 0:00:05]} 28. Rd1 {[%emt 0:01:49]} Bxe3 {[%emt 0:00:42]} 29. Bxe3 {[%emt 0:00:07]} Nc4 {[%emt 0:00:05]} 30. Ra1 {[%emt 0:00:07]} Rd8 {[%emt 0:02:06]} 31. Bf4 {[%emt 0:00:44]} Rd5 {[%emt 0:00:21]} 32. b3 {[%emt 0:00:51]} Nxe5 {[%emt 0:00:09]} 33. Rc1 {[%emt 0:00:04]} Nd3 {[%emt 0:00:30]} 34. Rc8+ {[%emt 0:00:06]} Kh7 {[%emt 0:00:03]} 0-1

[Event "ESP-chT 1st Division 2020"]
[Site "Padron"]
[Date "2020.10.09"]
[Round "7.3"]
[White "Laiz Ibanez, Hector"]
[Black "Quintin Navarro, Alberto"]
[Result "1/2-1/2"]
[ECO "C92"]
[WhiteElo "2318"]
[BlackElo "2383"]
[Annotator "ChessBase"]
[PlyCount "126"]
[EventDate "2020.10.01"]
[EventType "team-tourn"]
[EventCountry "ESP"]
[SourceTitle "playchess.com"]
[Source "ChessBase"]
[SourceQuality "1"]
[TimeControl "5400+30"]

1. e4 {[%emt 0:00:00]} e5 {[%emt 0:00:00]} 2. Nf3 {[%emt 0:00:00]} Nc6 {[%emt 0:00:00]} 3. Bb5 {[%emt 0:00:00]} a6 {[%emt 0:00:00]} 4. Ba4 {[%emt 0:00:00]} Nf6 {[%emt 0:00:00]} 5. O-O {[%emt 0:00:00]} Be7 {[%emt 0:00:00]} 6. Re1 {[%emt 0:00:41]} b5 {[%emt 0:00:00]} 7. Bb3 {[%emt 0:00:03]} d6 {[%emt 0:00:11]} 8. h3 {[%emt 0:00:05]} O-O {[%emt 0:00:06]} 9. c3 {[%emt 0:00:02]} Bb7 {[%emt 0:00:23]} 10. d4 {[%emt 0:00:47]} Re8 {[%emt 0:00:12]} 11. Nbd2 {[%emt 0:10:31]} Bf8 {[%emt 0:00:17]} 12. Bc2 {[%emt 0:03:37]} h6 {[%emt 0:02:38]} 13. d5 {[%emt 0:04:57]} Nb8 {[%emt 0:01:15]} 14. a4 {[%emt 0:13:52]} c6 {[%emt 0:11:44]} 15. dxc6 {[%emt 0:00:53]} Bxc6 {[%emt 0:00:33]} 16. axb5 {[%emt 0:16:07]} axb5 {[%emt 0:00:10]} 17. Rxa8 {[%emt 0:00:04]} Bxa8 {[%emt 0:00:07]} 18. Nf1 {[%emt 0:06:30]} Nbd7 {[%emt 0:01:37]} 19. Ng3 {[%emt 0:00:27]} g6 {[%emt 0:01:59]} 20. Qe2 {[%emt 0:04:42]} Bc6 {[%emt 0:02:33]} 21. Rd1 {[%emt 0:00:38]} Qb6 {[%emt 0:04:13]} 22. h4 {[%emt 0:05:16]} Nc5 {[%emt 0:18:56]} 23. h5 {[%emt 0:09:00]} Ne6 {[%emt 0:05:45]} 24. hxg6 {[%emt 0:01:37]} fxg6 {[%emt 0:00:06]} 25. Nh2 {[%emt 0:02:06]} h5 {[%emt 0:08:46]} 26. Bb3 {[%emt 0:00:17]} Kg7 {[%emt 0:00:29]} 27. Bxe6 {[%emt 0:00:14]} Rxe6 {[%emt 0:00:05]} 28. Nf3 {[%emt 0:01:15]} Ng4 {[%emt 0:02:11]} 29. Nh2 {[%emt 0:02:15]} Nxh2 {[%emt 0:01:51]} 30. Kxh2 {[%emt 0:00:06]} Qd8 {[%emt 0:07:52]} 31. Qe3 {[%emt 0:01:37]} Qh4+ {[%emt 0:05:41]} 32. Kg1 {[%emt 0:00:05]} Qg4 {[%emt 0:00:24]} 33. Re1 {[%emt 0:01:23]} Kh7 {[%emt 0:02:27]} 34. Qg5 {[%emt 0:04:02]} Qxg5 {[%emt 0:00:47]} 35. Bxg5 {[%emt 0:00:07]} Bh6 {[%emt 0:00:58]} 36. Bxh6 {[%emt 0:00:05]} Kxh6 {[%emt 0:00:04]} 37. f3 {[%emt 0:00:20]} Re8 {[%emt 0:01:09]} 38. Rd1 {[%emt 0:01:22]} Rd8 {[%emt 0:00:09]} 39. Nf1 {[%emt 0:00:30]} Kg7 {[%emt 0:01:00]} 40. Ne3 {[%emt 0:00:28]} Kf6 {[%emt 0:02:31]} 41. Kf2 {[%emt 0:00:31]} Ke6 {[%emt 0:00:17]} 42. Ra1 {[%emt 0:00:07]} Ra8 {[%emt 0:00:13]} 43. Rxa8 {[%emt 0:00:16]} Bxa8 {[%emt 0:00:05]} 44. Ke2 {[%emt 0:00:47]} g5 {[%emt 0:03:29]} 45. Kd3 {[%emt 0:00:34]} Kf6 {[%emt 0:03:41]} 46. c4 {[%emt 0:04:30]} Bc6 {[%emt 0:04:55]} 47. Nf5 {[%emt 0:03:35]} bxc4+ {[%emt 0:01:08]} 48. Kxc4 {[%emt 0:00:08]} g4 {[%emt 0:00:53]} 49. fxg4 {[%emt 0:02:15]} Bxe4 {[%emt 0:00:17]} 50. Nxd6 {[%emt 0:00:04]} Bxg2 {[%emt 0:00:07]} 51. gxh5 {[%emt 0:00:03]} Kg5 {[%emt 0:00:18]} 52. Nf7+ {[%emt 0:00:54]} Kxh5 {[%emt 0:00:16]} 53. Nxe5 {[%emt 0:00:14]} Kg5 {[%emt 0:00:15]} 54. Kc5 {[%emt 0:01:47]} Kf6 {[%emt 0:00:31]} 55. Kd6 {[%emt 0:00:25]} Bf1 {[%emt 0:00:27]} 56. b4 {[%emt 0:00:03]} Be2 {[%emt 0:00:05]} 57. Nd7+ {[%emt 0:00:59]} Kf7 {[%emt 0:00:15]} 58. Nb6 {[%emt 0:00:33]} Ke8 {[%emt 0:00:20]} 59. Kc5 {[%emt 0:00:07]} Kd8 {[%emt 0:00:08]} 60. Nc4 {[%emt 0:00:04]} Kc7 {[%emt 0:00:19]} 61. b5 {[%emt 0:00:10]} Bxc4 {[%emt 0:00:10]} 62. Kxc4 {[%emt 0:00:03]} Kb6 {[%emt 0:00:06]} 63. Kb3 {[%emt 0:00:04]} Kxb5 1/2-1/2

[Event "ESP-chT 1st Division 2020"]
[Site "Padron"]
[Date "2020.10.09"]
[Round "7.4"]
[White "Bayo Milagro, Alvaro"]
[Black "Abal Cores, Lucas"]
[Result "1-0"]
[ECO "A10"]
[WhiteElo "2254"]
[BlackElo "2315"]
[Annotator "ChessBase"]
[PlyCount "69"]
[EventDate "2020.10.01"]
[EventType "team-tourn"]
[EventCountry "ESP"]
[SourceTitle "playchess.com"]
[Source "ChessBase"]
[SourceQuality "1"]
[TimeControl "5400+30"]

1. c4 {[%emt 0:00:00]} f5 {[%emt 0:00:00]} 2. Nc3 {[%emt 0:00:00]} Nf6 {[%emt 0:00:27]} 3. d4 {[%emt 0:00:10]} d6 {[%emt 0:00:04]} 4. Bg5 {[%emt 0:00:07]} Nbd7 {[%emt 0:00:04]} 5. Qc2 {[%emt 0:01:15]} g6 {[%emt 0:00:04]} 6. e3 {[%emt 0:00:07]} Bg7 {[%emt 0:01:06]} 7. Bd3 {[%emt 0:00:14]} O-O {[%emt 0:00:47]} 8. Nge2 {[%emt 0:00:09]} e5 {[%emt 0:02:17]} 9. f3 {[%emt 0:00:11]} c6 {[%emt 0:03:34]} 10. O-O {[%emt 0:00:09]} Qe8 {[%emt 0:03:10]} 11. Rad1 {[%emt 0:01:21]} Nh5 {[%emt 0:11:30]} 12. Kh1 {[%emt 0:04:55]} Ndf6 {[%emt 0:06:28]} 13. b4 {[%emt 0:07:05]} h6 {[%emt 0:07:56]} 14. Bh4 {[%emt 0:00:17]} g5 {[%emt 0:10:27]} 15. Bf2 {[%emt 0:00:15]} Qg6 {[%emt 0:13:55]} 16. c5 {[%emt 0:05:22]} Ne8 {[%emt 0:09:51]} 17. g4 {[%emt 0:02:07]} e4 {[%emt 0:01:19]} 18. fxe4 {[%emt 0:04:27]} fxg4 {[%emt 0:00:11]} 19. e5 {[%emt 0:00:45]} Qe6 {[%emt 0:00:17]} 20. cxd6 {[%emt 0:03:25]} Nxd6 {[%emt 0:02:11]} 21. exd6 {[%emt 0:02:53]} Qxd6 {[%emt 0:00:08]} 22. Ng3 {[%emt 0:03:36]} Nxg3+ {[%emt 0:00:07]} 23. Bxg3 {[%emt 0:00:09]} Qxb4 {[%emt 0:00:05]} 24. Rxf8+ {[%emt 0:05:01]} Qxf8 {[%emt 0:00:13]} 25. Bc4+ {[%emt 0:00:42]} Kh8 {[%emt 0:01:28]} 26. Rf1 {[%emt 0:00:35]} Qe8 {[%emt 0:01:14]} 27. Ne4 {[%emt 0:03:43]} Qg6 {[%emt 0:02:29]} 28. Bf7 {[%emt 0:07:02]} Qh7 {[%emt 0:00:05]} 29. Qg2 {[%emt 0:02:29]} Bf5 {[%emt 0:01:37]} 30. Nd6 {[%emt 0:02:38]} Bd3 {[%emt 0:00:08]} 31. Bb3 {[%emt 0:08:59]} Qg6 {[%emt 0:03:03]} 32. Rd1 {[%emt 0:11:15]} Rf8 {[%emt 0:02:41]} 33. Nf7+ {[%emt 0:04:02]} Kh7 {[%emt 0:00:25]} 34. Rxd3 {[%emt 0:00:21]} Rxf7 {[%emt 0:00:06]} 35. Rd1 {[%emt 0:00:13]} 1-0

[Event "ESP-chT 1st Division 2020"]
[Site "Padron"]
[Date "2020.10.09"]
[Round "7.5"]
[White "Segura Santos, Luis"]
[Black "Vela Frago, Alberto"]
[Result "0-1"]
[ECO "C55"]
[WhiteElo "2122"]
[BlackElo "2071"]
[Annotator "ChessBase"]
[PlyCount "76"]
[EventDate "2020.10.01"]
[EventType "team-tourn"]
[EventCountry "ESP"]
[SourceTitle "playchess.com"]
[Source "ChessBase"]
[SourceQuality "1"]
[TimeControl "5400+30"]

1. e4 {[%emt 0:00:00]} e5 {[%emt 0:00:00]} 2. Nf3 {[%emt 0:00:00]} Nc6 {[%emt 0:00:00]} 3. Bc4 {[%emt 0:00:08]} Nf6 {[%emt 0:00:00]} 4. d4 {[%emt 0:00:03]} exd4 {[%emt 0:00:26]} 5. e5 {[%emt 0:00:05]} d5 {[%emt 0:00:04]} 6. Bb5 {[%emt 0:00:06]} Ne4 {[%emt 0:00:04]} 7. Nxd4 {[%emt 0:00:06]} Bc5 {[%emt 0:00:09]} 8. Be3 {[%emt 0:00:07]} O-O {[%emt 0:01:12]} 9. Nxc6 {[%emt 0:00:14]} bxc6 {[%emt 0:00:59]} 10. Bxc5 {[%emt 0:00:06]} Nxc5 {[%emt 0:00:43]} 11. Bxc6 {[%emt 0:00:04]} Rb8 {[%emt 0:00:57]} 12. Qxd5 {[%emt 0:00:33]} Qe7 {[%emt 0:02:05]} 13. O-O {[%emt 0:09:23]} Rxb2 {[%emt 0:11:15]} 14. Na3 {[%emt 0:35:28]} Rd8 {[%emt 0:29:19]} 15. Qf3 {[%emt 0:00:10]} Ba6 {[%emt 0:12:35]} 16. Rfd1 {[%emt 0:12:04]} Ne6 {[%emt 0:03:10]} 17. Bd5 {[%emt 0:11:55]} Rdb8 {[%emt 0:02:35]} 18. Rd2 {[%emt 0:11:18]} R2b4 {[%emt 0:16:16]} 19. Rad1 {[%emt 0:04:18]} h6 {[%emt 0:01:04]} 20. c4 {[%emt 0:02:24]} Rb2 {[%emt 0:04:16]} 21. h3 {[%emt 0:06:32]} Nf8 {[%emt 0:00:05]} 22. Qc3 {[%emt 0:00:28]} Rxd2 {[%emt 0:02:50]} 23. Rxd2 {[%emt 0:00:01]} Ng6 {[%emt 0:00:12]} 24. Qa5 {[%emt 0:01:49]} Qxe5 {[%emt 0:02:20]} 25. Bxf7+ {[%emt 0:03:50]} Kxf7 {[%emt 0:00:54]} 26. Rd7+ {[%emt 0:00:12]} Ke6 {[%emt 0:03:23]} 27. Rd5 {[%emt 0:00:32]} Qa1+ {[%emt 0:00:47]} 28. Kh2 {[%emt 0:00:03]} Rb6 {[%emt 0:00:42]} 29. Nc2 {[%emt 0:01:17]} Qf6 {[%emt 0:03:36]} 30. Nd4+ {[%emt 0:00:28]} Ke7 {[%emt 0:00:01]} 31. Qc5+ {[%emt 0:01:07]} Ke8 {[%emt 0:00:01]} 32. Nf5 {[%emt 0:00:31]} Bc8 {[%emt 0:01:11]} 33. Qe3+ {[%emt 0:00:33]} Kf8 {[%emt 0:00:52]} 34. g4 {[%emt 0:00:28]} Be6 {[%emt 0:00:48]} 35. Qc5+ {[%emt 0:00:32]} Kg8 {[%emt 0:00:14]} 36. Qxc7 {[%emt 0:00:28]} Bxd5 {[%emt 0:00:27]} 37. cxd5 {[%emt 0:00:31]} Qe5+ {[%emt 0:00:09]} 38. Qxe5 {[%emt 0:00:19]} Nxe5 {[%emt 0:00:01]} 0-1

[Event "ESP-chT 1st Division 2020"]
[Site "Padron"]
[Date "2020.10.09"]
[Round "7.6"]
[White "Gracia Laguens, Asuncion"]
[Black "Dorado Meijide, Andrea"]
[Result "0-1"]
[ECO "A15"]
[WhiteElo "1414"]
[BlackElo "1779"]
[Annotator "NA"]
[PlyCount "74"]
[EventDate "2020.10.01"]
[EventType "team-tourn"]
[EventCountry "ESP"]
[SourceTitle "playchess.com"]
[Source "ChessBase"]
[SourceQuality "1"]
[TimeControl "5400+30"]

1. c4 {[%emt 0:00:00]} Nf6 {[%emt 0:00:00]} 2. g3 {[%emt 0:00:20]} e6 {[%emt 0:00:00]} 3. Bg2 {[%emt 0:00:44]} d5 {[%emt 0:00:39]} 4. b3 {[%emt 0:01:24]} Be7 {[%emt 0:00:30]} 5. Bb2 {[%emt 0:01:39]} O-O {[%emt 0:00:37]} 6. Nf3 {[%emt 0:02:36]} c5 {[%emt 0:00:36]} 7. d3 {[%emt 0:02:12]} d4 {[%emt 0:00:35]} 8. O-O {[%emt 0:00:54]} Nc6 {[%emt 0:01:08]} 9. Nbd2 {[%emt 0:02:28]} e5 {[%emt 0:04:47]} 10. Re1 {[%emt 0:03:36]} Qc7 {[%emt 0:03:31]} 11. Nf1 {[%emt 0:07:51]} Bg4 {[%emt 0:04:35]} 12. h3 {[%emt 0:03:32]} Bh5 {[%emt 0:02:58]} 13. e4 {[%emt 0:08:56]} dxe3 {[%emt 0:04:36]} 14. Rxe3 {[%emt 0:02:25]} Nd7 {[%emt 0:05:44]} 15. Qc2 {[%emt 0:04:41]} Rad8 {[%emt 0:06:03]} 16. Rae1 {[%emt 0:02:43]} f6 {[%emt 0:02:27]} 17. g4 {[%emt 0:05:03]} Bg6 {[%emt 0:01:22]} 18. Nh4 {[%emt 0:03:57]} Nd4 {[%emt 0:03:51]} 19. Bxd4 {[%emt 0:02:00]} cxd4 {[%emt 0:00:17]} 20. Rg3 {[%emt 0:03:47]} Bb4 {[%emt 0:04:38]} 21. Re2 {[%emt 0:02:35]} Nc5 {[%emt 0:00:49]} 22. Nxg6 {[%emt 0:01:02]} hxg6 {[%emt 0:00:14]} 23. Bd5+ {[%emt 0:00:39]} Kh8 {[%emt 0:05:10]} 24. h4 {[%emt 0:01:02]} f5 {[%emt 0:06:04]} 25. f3 {[%emt 0:02:29]} e4 {[%emt 0:02:48]} 26. fxe4 {[%emt 0:04:16]} fxe4 {[%emt 0:00:20]} 27. Reg2 {[%emt 0:02:01]} exd3 {[%emt 0:03:01]} 28. Qd1 {[%emt 0:00:27]} Rde8 {[%emt 0:02:12]} 29. g5 {[%emt 0:00:31]} Re1 {[%emt 0:01:00]} 30. Qf3 {[%emt 0:04:39]} Rxf3 {[%emt 0:04:13]} 31. Rxf3 {[%emt 0:00:22]} Qe7 {[%emt 0:04:30]} 32. h5 {[%emt 0:01:37]} gxh5 {[%emt 0:02:13]} 33. g6 {[%emt 0:00:17]} Nd7 {[%emt 0:04:05]} 34. Rf7 {[%emt 0:02:39]} Qxf7 {[%emt 0:01:43]} 35. Bxf7 {[%emt 0:00:35]} d2 {[%emt 0:00:16]} 36. Rh2 {[%emt 0:00:14]} Nf6 {[%emt 0:01:54]} 37. Kf2 {[%emt 0:01:16]} Rxf1+ {[%emt 0:00:23]} 0-1

[Event "ESP-chT 1st Division 2020"]
[Site "Padron"]
[Date "2020.10.09"]
[Round "7.7"]
[White "Pap, Misa"]
[Black "Alsina Leal, Daniel"]
[Result "1/2-1/2"]
[ECO "B22"]
[WhiteElo "2447"]
[BlackElo "2494"]
[Annotator "ChessBase"]
[PlyCount "62"]
[EventDate "2020.10.01"]
[EventType "team-tourn"]
[EventCountry "ESP"]
[SourceTitle "playchess.com"]
[Source "ChessBase"]
[SourceQuality "1"]
[TimeControl "5400+30"]

1. e4 {[%emt 0:00:00]} c5 {[%emt 0:00:08]} 2. c3 {[%emt 0:00:00]} Nf6 {[%emt 0:00:10]} 3. e5 {[%emt 0:00:00]} Nd5 {[%emt 0:00:04]} 4. Nf3 {[%emt 0:00:07]} Nc6 {[%emt 0:00:19]} 5. d4 {[%emt 0:01:07]} cxd4 {[%emt 0:00:19]} 6. cxd4 {[%emt 0:00:05]} d6 {[%emt 0:00:44]} 7. Bc4 {[%emt 0:00:10]} Nb6 {[%emt 0:01:05]} 8. Bb5 {[%emt 0:00:12]} dxe5 {[%emt 0:00:47]} 9. Nxe5 {[%emt 0:00:07]} Bd7 {[%emt 0:00:36]} 10. Nxd7 {[%emt 0:00:15]} Qxd7 {[%emt 0:00:07]} 11. O-O {[%emt 0:00:17]} e6 {[%emt 0:00:26]} 12. Nc3 {[%emt 0:00:12]} Rd8 {[%emt 0:01:39]} 13. Be3 {[%emt 0:23:38]} Be7 {[%emt 0:01:24]} 14. Qb3 {[%emt 0:21:06]} O-O {[%emt 0:01:24]} 15. Rfd1 {[%emt 0:01:37]} Nd5 {[%emt 0:04:58]} 16. Nxd5 {[%emt 0:00:48]} exd5 {[%emt 0:03:48]} 17. Rac1 {[%emt 0:01:45]} Rc8 {[%emt 0:00:30]} 18. Rc3 {[%emt 0:05:33]} a6 {[%emt 0:11:34]} 19. Bxc6 {[%emt 0:00:32]} Rxc6 {[%emt 0:00:14]} 20. Rxc6 {[%emt 0:00:21]} Qxc6 {[%emt 0:00:09]} 21. Rc1 {[%emt 0:00:08]} Qd7 {[%emt 0:00:27]} 22. g3 {[%emt 0:04:09]} h5 {[%emt 0:03:14]} 23. Bf4 {[%emt 0:00:43]} Bf6 {[%emt 0:03:49]} 24. h4 {[%emt 0:06:17]} Re8 {[%emt 0:04:40]} 25. Be3 {[%emt 0:07:52]} b5 {[%emt 0:16:43]} 26. Rc5 {[%emt 0:00:36]} Rd8 {[%emt 0:00:15]} 27. Kg2 {[%emt 0:03:26]} Qe6 {[%emt 0:19:28]} 28. f3 {[%emt 0:01:41]} Be7 {[%emt 0:03:51]} 29. Rc1 {[%emt 0:01:59]} Bf6 {[%emt 0:07:16]} 30. Rc5 {[%emt 0:00:39]} Be7 {[%emt 0:00:14]} 31. Rc1 {[%emt 0:00:06]} Bf6 {[%emt 0:00:13]} 1/2-1/2